[Event "EYCC Girls U20 2021"]
[Site "Tornelo"]
[Date "2021.10.15"]
[Round "3.4"]
[White "Konecny, Sophie"]
[Black "Radeva, Viktoria"]
[Result "0-1"]
[ECO "E06"]
[WhiteElo "1864"]
[BlackElo "2314"]
[Annotator "NA"]
[PlyCount "82"]
[EventDate "2021.10.15"]
[EventType "swiss"]
[EventCountry "NET"]
[SourceTitle "playchess.com"]
[Source "ChessBase"]
[SourceQuality "1"]
[TimeControl "5400+30"]

1. d4 {[%emt 0:00:30]} d5 {[%emt 0:00:38]} 2. c4 {[%emt 0:00:09]} e6 {[%emt 0:00:08]} 3. Nf3 {[%emt 0:00:07]} Nf6 {[%emt 0:00:14]} 4. g3 {[%emt 0:00:08]} Be7 {[%emt 0:00:20]} 5. Bg2 {[%emt 0:00:58]} O-O {[%emt 0:00:15]} 6. O-O {[%emt 0:00:46]} c6 {[%emt 0:00:10]} 7. Qc2 {[%emt 0:01:11]} b6 {[%emt 0:00:18]} 8. Nbd2 {[%emt 0:00:31]} Bb7 {[%emt 0:03:07]} 9. e4 {[%emt 0:00:33]} Na6 {[%emt 0:01:32]} 10. a3 {[%emt 0:00:19]} Rc8 {[%emt 0:02:01]} 11. b3 {[%emt 0:04:52]} c5 {[%emt 0:04:12]} 12. exd5 {[%emt 0:03:32]} exd5 {[%emt 0:01:36]} 13. dxc5 {[%emt 0:01:45]} Nxc5 {[%emt 0:02:40]} 14. Bb2 {[%emt 0:06:46]} dxc4 {[%emt 0:03:53]} 15. Nxc4 {[%emt 0:09:12]} Be4 {[%emt 0:09:09]} 16. Qc3 {[%emt 0:03:14]} Qd3 {[%emt 0:18:50]} 17. Qxd3 {[%emt 0:07:26]} Bxd3 {[%emt 0:03:18]} 18. Rfe1 {[%emt 0:02:26]} Nxb3 {[%emt 0:05:42]} 19. Rxe7 {[%emt 0:09:04]} Nxa1 {[%emt 0:16:27]} 20. Nd6 {[%emt 0:01:31]} Rc2 {[%emt 0:13:01]} 21. Bxa1 {[%emt 0:03:15]} Ne4 {[%emt 0:03:03]} 22. Nxe4 {[%emt 0:17:16]} Rc1+ {[%emt 0:00:15]} 23. Bf1 {[%emt 0:00:18]} Rxf1+ {[%emt 0:00:22]} 24. Kg2 {[%emt 0:00:05]} Rxa1 {[%emt 0:00:12]} 25. Ned2 {[%emt 0:01:12]} Rxa3 {[%emt 0:02:54]} 26. Re3 {[%emt 0:01:13]} Rd8 {[%emt 0:00:41]} 27. Ne5 {[%emt 0:01:49]} f6 {[%emt 0:01:51]} 28. Nc6 {[%emt 0:04:05]} Rd6 {[%emt 0:00:36]} 29. Ne7+ {[%emt 0:01:38]} Kf7 {[%emt 0:00:37]} 30. Nc4 {[%emt 0:04:02]} Bxc4 {[%emt 0:00:45]} 31. Rxa3 {[%emt 0:01:18]} Kxe7 {[%emt 0:00:09]} 32. Rxa7+ {[%emt 0:00:08]} Rd7 {[%emt 0:00:08]} 33. Ra3 {[%emt 0:00:25]} b5 {[%emt 0:00:13]} 34. Kf3 {[%emt 0:05:08]} Rd3+ {[%emt 0:00:31]} 35. Rxd3 {[%emt 0:00:28]} Bxd3 {[%emt 0:00:08]} 36. Ke3 {[%emt 0:00:05]} Bc4 {[%emt 0:00:06]} 37. Kd4 {[%emt 0:00:07]} Kd6 {[%emt 0:00:15]} 38. f4 {[%emt 0:00:31]} Be6 {[%emt 0:00:18]} 39. Kd3 {[%emt 0:00:52]} Kc5 {[%emt 0:00:28]} 40. Kc3 {[%emt 0:00:05]} b4+ {[%emt 0:00:07]} 41. Kb2 {[%emt 0:00:07]} Kd4 {[%emt 0:00:13]} 0-1

[Event "EYCC Girls U20 2021"]
[Site "Tornelo"]
[Date "2021.10.15"]
[Round "3.5"]
[White "Afonasieva, Anna"]
[Black "Schulze, Lara"]
[Result "1/2-1/2"]
[ECO "D00"]
[WhiteElo "2227"]
[BlackElo "2250"]
[Annotator "NA"]
[PlyCount "67"]
[EventDate "2021.10.15"]
[EventType "swiss"]
[EventCountry "NET"]
[SourceTitle "playchess.com"]
[Source "ChessBase"]
[SourceQuality "1"]
[TimeControl "5400+30"]

1. d4 {[%emt 0:00:30]} Nf6 {[%emt 0:00:35]} 2. Bf4 {[%emt 0:00:07]} d5 {[%emt 0:00:47]} 3. e3 {[%emt 0:00:07]} e6 {[%emt 0:00:06]} 4. c3 {[%emt 0:00:33]} Bd6 {[%emt 0:00:10]} 5. Bg3 {[%emt 0:00:04]} O-O {[%emt 0:00:13]} 6. Nf3 {[%emt 0:00:08]} c5 {[%emt 0:00:10]} 7. Nbd2 {[%emt 0:00:04]} Qc7 {[%emt 0:00:21]} 8. dxc5 {[%emt 0:00:58]} Qxc5 {[%emt 0:00:17]} 9. Bd3 {[%emt 0:00:09]} Nbd7 {[%emt 0:00:33]} 10. O-O {[%emt 0:00:46]} Bxg3 {[%emt 0:02:53]} 11. hxg3 {[%emt 0:00:06]} Qc7 {[%emt 0:05:21]} 12. Qe2 {[%emt 0:02:20]} Nc5 {[%emt 0:06:01]} 13. Bc2 {[%emt 0:01:34]} b6 {[%emt 0:03:45]} 14. b4 {[%emt 0:08:37]} Ba6 {[%emt 0:09:11]} 15. c4 {[%emt 0:05:04]} Ncd7 {[%emt 0:02:05]} 16. Bd3 {[%emt 0:04:46]} Rac8 {[%emt 0:05:34]} 17. cxd5 {[%emt 0:10:43]} Bxd3 {[%emt 0:00:38]} 18. Qxd3 {[%emt 0:00:05]} Nxd5 {[%emt 0:01:15]} 19. a3 {[%emt 0:00:49]} Qc3 {[%emt 0:08:45]} 20. Qd4 {[%emt 0:04:22]} a6 {[%emt 0:04:27]} 21. e4 {[%emt 0:09:29]} Qxd4 {[%emt 0:02:25]} 22. Nxd4 {[%emt 0:00:04]} Nc3 {[%emt 0:00:30]} 23. Rfe1 {[%emt 0:02:46]} Rfd8 {[%emt 0:03:40]} 24. N2b3 {[%emt 0:03:14]} Ne5 {[%emt 0:02:02]} 25. Kf1 {[%emt 0:05:01]} Rc4 {[%emt 0:06:15]} 26. f4 {[%emt 0:05:53]} Nc6 {[%emt 0:10:53]} 27. Nxc6 {[%emt 0:02:49]} Rxc6 {[%emt 0:00:05]} 28. Rac1 {[%emt 0:04:30]} Rdc8 {[%emt 0:07:42]} 29. Re3 {[%emt 0:10:00]} Kf8 {[%emt 0:02:09]} 30. Ke1 {[%emt 0:03:20]} Ke7 {[%emt 0:01:20]} 31. e5 {[%emt 0:03:04]} h5 {[%emt 0:05:35]} 32. Rd3 {[%emt 0:03:52]} g6 {[%emt 0:02:22]} 33. Nd2 {[%emt 0:01:29]} Nd5 {[%emt 0:01:30]} 34. Rxc6 {[%emt 0:01:25]} 1/2-1/2

[Event "EYCC Girls U20 2021"]
[Site "Tornelo"]
[Date "2021.10.15"]
[Round "4.1"]
[White "Heydarova, Aytaj"]
[Black "Schulze, Lara"]
[Result "0-1"]
[ECO "C47"]
[WhiteElo "1637"]
[BlackElo "2250"]
[Annotator "ChessBase"]
[PlyCount "80"]
[EventDate "2021.10.15"]
[EventType "swiss"]
[EventCountry "NET"]
[SourceTitle "playchess.com"]
[Source "ChessBase"]
[SourceQuality "1"]
[TimeControl "5400+30"]

1. e4 {[%emt 0:00:30]} e5 {[%emt 0:00:36]} 2. Nf3 {[%emt 0:00:05]} Nc6 {[%emt 0:00:13]} 3. Nc3 {[%emt 0:00:06]} Nf6 {[%emt 0:00:16]} 4. a3 {[%emt 0:00:05]} d5 {[%emt 0:02:19]} 5. Bb5 {[%emt 0:00:07]} Nxe4 {[%emt 0:09:26]} 6. Qe2 {[%emt 0:00:08]} Qd6 {[%emt 0:07:58]} 7. Nxe4 {[%emt 0:00:18]} dxe4 {[%emt 0:00:12]} 8. Qxe4 {[%emt 0:00:08]} Bd7 {[%emt 0:06:52]} 9. d4 {[%emt 0:04:59]} f5 {[%emt 0:15:55]} 10. Qe2 {[%emt 0:03:18]} e4 {[%emt 0:08:44]} 11. Bxc6 {[%emt 0:01:34]} Qxc6 {[%emt 0:04:35]} 12. Ne5 {[%emt 0:01:11]} Qe6 {[%emt 0:00:13]} 13. Bg5 {[%emt 0:27:04]} Bd6 {[%emt 0:03:32]} 14. Nxd7 {[%emt 0:08:34]} Qxd7 {[%emt 0:00:59]} 15. f3 {[%emt 0:13:11]} O-O {[%emt 0:03:04]} 16. fxe4 {[%emt 0:00:45]} fxe4 {[%emt 0:00:46]} 17. O-O-O {[%emt 0:00:34]} Qf5 {[%emt 0:02:47]} 18. Be3 {[%emt 0:01:33]} b5 {[%emt 0:01:18]} 19. Rdf1 {[%emt 0:02:00]} Qd5 {[%emt 0:01:16]} 20. Qg4 {[%emt 0:03:49]} Kh8 {[%emt 0:02:18]} 21. Kb1 {[%emt 0:06:25]} a5 {[%emt 0:02:38]} 22. Qg5 {[%emt 0:00:57]} Qc4 {[%emt 0:01:37]} 23. Rf5 {[%emt 0:01:52]} b4 {[%emt 0:03:19]} 24. b3 {[%emt 0:04:11]} Qc3 {[%emt 0:07:04]} 25. Rxf8+ {[%emt 0:00:12]} Rxf8 {[%emt 0:00:24]} 26. Bc1 {[%emt 0:04:32]} bxa3 {[%emt 0:01:47]} 27. Qd2 {[%emt 0:01:06]} Qxd2 {[%emt 0:08:00]} 28. Bxd2 {[%emt 0:00:04]} Rf2 {[%emt 0:00:03]} 29. Bxa5 {[%emt 0:00:17]} Rxg2 {[%emt 0:00:08]} 30. Re1 {[%emt 0:00:28]} Rxh2 {[%emt 0:02:00]} 31. Rxe4 {[%emt 0:00:05]} h5 {[%emt 0:00:06]} 32. c4 {[%emt 0:01:36]} Rb2+ {[%emt 0:01:39]} 33. Ka1 {[%emt 0:00:28]} Rxb3 {[%emt 0:00:11]} 34. c5 {[%emt 0:00:02]} Bg3 {[%emt 0:00:26]} 35. d5 {[%emt 0:03:24]} Kh7 {[%emt 0:04:30]} 36. Re7 {[%emt 0:00:43]} h4 {[%emt 0:00:37]} 37. Bxc7 {[%emt 0:01:56]} Bxc7 {[%emt 0:00:23]} 38. Rxc7 {[%emt 0:00:02]} h3 {[%emt 0:00:05]} 39. Re7 {[%emt 0:00:10]} h2 {[%emt 0:00:10]} 40. Re1 {[%emt 0:00:03]} Rg3 {[%emt 0:00:07]} 0-1

[Event "EYCC Girls U20 2021"]
[Site "Tornelo"]
[Date "2021.10.15"]
[Round "4.2"]
[White "Radeva, Viktoria"]
[Black "Afonasieva, Anna"]
[Result "0-1"]
[ECO "B11"]
[WhiteElo "2314"]
[BlackElo "2227"]
[Annotator "ChessBase"]
[PlyCount "98"]
[EventDate "2021.10.15"]
[EventType "swiss"]
[EventCountry "NET"]
[SourceTitle "playchess.com"]
[Source "ChessBase"]
[SourceQuality "1"]
[TimeControl "5400+30"]

1. e4 {[%emt 0:00:30]} c6 {[%emt 0:00:34]} 2. Nc3 {[%emt 0:00:17]} d5 {[%emt 0:00:18]} 3. Nf3 {[%emt 0:00:09]} Nf6 {[%emt 0:00:23]} 4. e5 {[%emt 0:00:53]} Ne4 {[%emt 0:00:09]} 5. Ne2 {[%emt 0:00:29]} Qb6 {[%emt 0:00:49]} 6. d4 {[%emt 0:00:20]} e6 {[%emt 0:02:58]} 7. Ng3 {[%emt 0:01:05]} Nxg3 {[%emt 0:00:23]} 8. fxg3 {[%emt 0:01:32]} c5 {[%emt 0:00:48]} 9. Bd3 {[%emt 0:00:26]} Nc6 {[%emt 0:04:38]} 10. a3 {[%emt 0:04:29]} cxd4 {[%emt 0:03:51]} 11. O-O {[%emt 0:00:25]} Be7 {[%emt 0:03:58]} 12. Kh1 {[%emt 0:02:12]} Bd7 {[%emt 0:07:33]} 13. Qe1 {[%emt 0:05:06]} O-O-O {[%emt 0:03:20]} 14. b4 {[%emt 0:06:54]} f6 {[%emt 0:07:32]} 15. exf6 {[%emt 0:11:57]} Bxf6 {[%emt 0:00:54]} 16. b5 {[%emt 0:02:44]} Ne7 {[%emt 0:04:10]} 17. Ne5 {[%emt 0:10:16]} Ng6 {[%emt 0:06:14]} 18. Nf7 {[%emt 0:04:03]} e5 {[%emt 0:01:49]} 19. Nxd8 {[%emt 0:02:03]} Rxd8 {[%emt 0:00:21]} 20. Bd2 {[%emt 0:01:35]} Re8 {[%emt 0:01:17]} 21. Ba5 {[%emt 0:05:58]} Qd6 {[%emt 0:02:15]} 22. Bb4 {[%emt 0:14:11]} Qc7 {[%emt 0:01:23]} 23. Bf5 {[%emt 0:00:36]} Bxf5 {[%emt 0:06:12]} 24. Rxf5 {[%emt 0:00:07]} Qd7 {[%emt 0:00:32]} 25. Qf1 {[%emt 0:01:12]} e4 {[%emt 0:02:50]} 26. Re1 {[%emt 0:06:43]} Ne5 {[%emt 0:05:27]} 27. Bc5 {[%emt 0:04:03]} Nc4 {[%emt 0:08:11]} 28. Qf4 {[%emt 0:04:20]} b6 {[%emt 0:06:37]} 29. Rxf6 {[%emt 0:00:09]} gxf6 {[%emt 0:00:10]} 30. Bxd4 {[%emt 0:00:09]} Nxa3 {[%emt 0:01:20]} 31. Bxf6 {[%emt 0:02:10]} Kb7 {[%emt 0:01:26]} 32. Qc1 {[%emt 0:02:10]} Nxb5 {[%emt 0:01:10]} 33. c4 {[%emt 0:00:14]} Rc8 {[%emt 0:00:30]} 34. Rd1 {[%emt 0:02:04]} Qc6 {[%emt 0:04:20]} 35. Qh6 {[%emt 0:00:22]} Qxc4 {[%emt 0:00:14]} 36. Qxh7+ {[%emt 0:00:10]} Rc7 {[%emt 0:00:11]} 37. Qf5 {[%emt 0:00:33]} e3 {[%emt 0:05:33]} 38. Qf3 {[%emt 0:01:49]} e2 {[%emt 0:01:28]} 39. Re1 {[%emt 0:00:44]} Rc6 {[%emt 0:01:21]} 40. g4 {[%emt 0:00:54]} d4 {[%emt 0:00:24]} 41. Bg5 {[%emt 0:03:37]} d3 {[%emt 0:00:09]} 42. Bd2 {[%emt 0:01:08]} Nd4 {[%emt 0:00:09]} 43. Qf8 {[%emt 0:00:12]} Nc2 {[%emt 0:01:32]} 44. Rc1 {[%emt 0:00:07]} Qe4 {[%emt 0:01:12]} 45. Qf7+ {[%emt 0:00:16]} Rc7 {[%emt 0:00:03]} 46. Qf2 {[%emt 0:01:00]} Qxg4 {[%emt 0:00:34]} 47. h3 {[%emt 0:00:12]} Qe4 {[%emt 0:00:07]} 48. Kg1 {[%emt 0:00:17]} Re7 {[%emt 0:00:21]} 49. Be1 {[%emt 0:01:04]} Nxe1 {[%emt 0:00:10]} 0-1

[Event "EYCC Girls U20 2021"]
[Site "Tornelo"]
[Date "2021.10.15"]
[Round "4.3"]
[White "Cvitan, Ena"]
[Black "Konecny, Sophie"]
[Result "1-0"]
[ECO "E42"]
[WhiteElo "2260"]
[BlackElo "1864"]
[Annotator "ChessBase"]
[PlyCount "89"]
[EventDate "2021.10.15"]
[EventType "swiss"]
[EventCountry "NET"]
[SourceTitle "playchess.com"]
[Source "ChessBase"]
[SourceQuality "1"]
[TimeControl "5400+30"]

1. d4 {[%emt 0:00:30]} Nf6 {[%emt 0:00:46]} 2. c4 {[%emt 0:00:10]} e6 {[%emt 0:00:07]} 3. Nc3 {[%emt 0:00:06]} Bb4 {[%emt 0:00:06]} 4. e3 {[%emt 0:00:08]} c5 {[%emt 0:00:07]} 5. Nge2 {[%emt 0:00:18]} cxd4 {[%emt 0:03:52]} 6. exd4 {[%emt 0:00:09]} d5 {[%emt 0:02:03]} 7. c5 {[%emt 0:00:14]} Ba5 {[%emt 0:09:11]} 8. a3 {[%emt 0:04:56]} a6 {[%emt 0:03:14]} 9. Bf4 {[%emt 0:05:55]} Bc7 {[%emt 0:03:24]} 10. g3 {[%emt 0:03:52]} Nc6 {[%emt 0:04:52]} 11. Bg2 {[%emt 0:00:56]} O-O {[%emt 0:02:04]} 12. O-O {[%emt 0:00:06]} Ne7 {[%emt 0:06:33]} 13. b4 {[%emt 0:01:16]} Ng6 {[%emt 0:03:22]} 14. Bxc7 {[%emt 0:01:18]} Qxc7 {[%emt 0:00:12]} 15. f4 {[%emt 0:00:48]} Bd7 {[%emt 0:03:46]} 16. Nc1 {[%emt 0:10:01]} Bb5 {[%emt 0:05:55]} 17. Nxb5 {[%emt 0:02:30]} axb5 {[%emt 0:01:30]} 18. Qd3 {[%emt 0:00:05]} Qc6 {[%emt 0:03:24]} 19. Nb3 {[%emt 0:00:48]} Ne7 {[%emt 0:04:54]} 20. Rfc1 {[%emt 0:02:49]} Ra6 {[%emt 0:03:49]} 21. Na5 {[%emt 0:00:40]} Qd7 {[%emt 0:00:50]} 22. Bf1 {[%emt 0:00:24]} Nc6 {[%emt 0:02:11]} 23. Qxb5 {[%emt 0:00:36]} Rxa5 {[%emt 0:07:21]} 24. bxa5 {[%emt 0:04:46]} Ra8 {[%emt 0:00:59]} 25. Rab1 {[%emt 0:00:55]} Nxa5 {[%emt 0:02:20]} 26. Qxd7 {[%emt 0:00:58]} Nxd7 {[%emt 0:00:07]} 27. Bb5 {[%emt 0:00:46]} Nb8 {[%emt 0:00:30]} 28. Kf2 {[%emt 0:04:35]} g6 {[%emt 0:01:46]} 29. Ke3 {[%emt 0:03:17]} Kg7 {[%emt 0:00:41]} 30. Bd3 {[%emt 0:03:13]} Nbc6 {[%emt 0:02:51]} 31. Rb6 {[%emt 0:00:15]} Ne7 {[%emt 0:01:43]} 32. g4 {[%emt 0:06:46]} Nc8 {[%emt 0:05:28]} 33. Rb5 {[%emt 0:01:23]} Ne7 {[%emt 0:01:22]} 34. Rcb1 {[%emt 0:00:30]} Nec6 {[%emt 0:01:18]} 35. h4 {[%emt 0:03:30]} Kf6 {[%emt 0:01:51]} 36. Rc1 {[%emt 0:04:34]} Re8 {[%emt 0:03:04]} 37. Rh1 {[%emt 0:04:28]} Rh8 {[%emt 0:03:15]} 38. h5 {[%emt 0:00:26]} g5 {[%emt 0:00:57]} 39. fxg5+ {[%emt 0:02:15]} Kxg5 {[%emt 0:00:11]} 40. h6 {[%emt 0:00:08]} f6 {[%emt 0:02:50]} 41. Rh5+ {[%emt 0:02:17]} Kxg4 {[%emt 0:00:18]} 42. Be2+ {[%emt 0:00:11]} Kg3 {[%emt 0:00:07]} 43. Rb1 {[%emt 0:00:12]} Kg2 {[%emt 0:01:01]} 44. Bf3+ {[%emt 0:00:10]} Kg3 {[%emt 0:00:05]} 45. Rg1# {[%emt 0:00:06]} 1-0

[Event "EYCC Girls U20 2021"]
[Site "Tornelo"]
[Date "2021.10.15"]
[Round "4.4"]
[White "Hereklioglu, Sude"]
[Black "Nosacheva, Mariya"]
[Result "1-0"]
[ECO "A05"]
[WhiteElo "1905"]
[BlackElo "2239"]
[Annotator "ChessBase"]
[PlyCount "55"]
[EventDate "2021.10.15"]
[EventType "swiss"]
[EventCountry "NET"]
[SourceTitle "playchess.com"]
[Source "ChessBase"]
[SourceQuality "1"]
[TimeControl "5400+30"]

1. Nf3 {[%emt 0:00:30]} Nf6 {[%emt 0:01:22]} 2. g3 {[%emt 0:00:12]} b5 {[%emt 0:01:35]} 3. Bg2 {[%emt 0:01:17]} Bb7 {[%emt 0:00:39]} 4. O-O {[%emt 0:01:04]} e6 {[%emt 0:00:13]} 5. d3 {[%emt 0:01:38]} c5 {[%emt 0:05:06]} 6. e4 {[%emt 0:00:42]} d6 {[%emt 0:04:12]} 7. Na3 {[%emt 0:10:02]} Qb6 {[%emt 0:01:37]} 8. Qe2 {[%emt 0:04:26]} a6 {[%emt 0:11:18]} 9. c3 {[%emt 0:03:39]} Be7 {[%emt 0:01:16]} 10. Bg5 {[%emt 0:05:40]} Nbd7 {[%emt 0:05:32]} 11. Nd2 {[%emt 0:09:27]} Rc8 {[%emt 0:01:29]} 12. f4 {[%emt 0:02:51]} h6 {[%emt 0:03:15]} 13. Bh4 {[%emt 0:05:38]} e5 {[%emt 0:06:43]} 14. Nc2 {[%emt 0:01:10]} c4+ {[%emt 0:04:52]} 15. d4 {[%emt 0:01:09]} Nf8 {[%emt 0:02:39]} 16. Kh1 {[%emt 0:06:11]} g5 {[%emt 0:11:55]} 17. fxg5 {[%emt 0:01:17]} hxg5 {[%emt 0:00:05]} 18. Bxg5 {[%emt 0:00:19]} Nh5 {[%emt 0:01:31]} 19. Qg4 {[%emt 0:11:51]} Bxg5 {[%emt 0:01:36]} 20. Qxg5 {[%emt 0:00:13]} Rc7 {[%emt 0:03:18]} 21. Bf3 {[%emt 0:04:39]} Ne6 {[%emt 0:02:20]} 22. Qh4 {[%emt 0:01:03]} Nxg3+ {[%emt 0:03:50]} 23. Qxg3 {[%emt 0:00:09]} exd4 {[%emt 0:00:02]} 24. Nxd4 {[%emt 0:06:11]} Nxd4 {[%emt 0:00:49]} 25. cxd4 {[%emt 0:00:15]} Qxd4 {[%emt 0:00:03]} 26. Rad1 {[%emt 0:00:17]} Qxb2 {[%emt 0:00:05]} 27. Qxd6 {[%emt 0:03:58]} Rd7 {[%emt 0:00:05]} 28. Qxd7+ {[%emt 0:00:28]} 1-0

[Event "EYCC Girls U20 2021"]
[Site "Tornelo"]
[Date "2021.10.15"]
[Round "4.5"]
[White "Sliwicka, Alicja"]
[Black "Bucur, Denisa-Andreea"]
[Result "1-0"]
[ECO "C01"]
[WhiteElo "2304"]
[BlackElo "2049"]
[Annotator "ChessBase"]
[PlyCount "75"]
[EventDate "2021.10.15"]
[EventType "swiss"]
[EventCountry "NET"]
[SourceTitle "playchess.com"]
[Source "ChessBase"]
[SourceQuality "1"]
[TimeControl "5400+30"]

1. e4 {[%emt 0:00:30]} e6 {[%emt 0:00:38]} 2. d4 {[%emt 0:00:13]} d5 {[%emt 0:00:09]} 3. Nc3 {[%emt 0:00:11]} Bb4 {[%emt 0:00:14]} 4. exd5 {[%emt 0:00:05]} exd5 {[%emt 0:00:06]} 5. Bd3 {[%emt 0:00:05]} Nf6 {[%emt 0:00:22]} 6. Nge2 {[%emt 0:00:07]} O-O {[%emt 0:01:33]} 7. O-O {[%emt 0:00:06]} c6 {[%emt 0:03:14]} 8. a3 {[%emt 0:01:02]} Bd6 {[%emt 0:01:54]} 9. Bf4 {[%emt 0:00:07]} Be6 {[%emt 0:07:32]} 10. Qd2 {[%emt 0:04:12]} Qc7 {[%emt 0:04:07]} 11. Bxd6 {[%emt 0:04:49]} Qxd6 {[%emt 0:00:09]} 12. Nf4 {[%emt 0:04:22]} Nbd7 {[%emt 0:01:28]} 13. Nce2 {[%emt 0:02:57]} b5 {[%emt 0:04:57]} 14. Ng3 {[%emt 0:07:04]} Rfe8 {[%emt 0:13:31]} 15. Rfe1 {[%emt 0:03:43]} a6 {[%emt 0:02:54]} 16. c3 {[%emt 0:10:58]} c5 {[%emt 0:03:14]} 17. dxc5 {[%emt 0:01:30]} Nxc5 {[%emt 0:04:22]} 18. Bc2 {[%emt 0:00:22]} Rad8 {[%emt 0:00:49]} 19. Rad1 {[%emt 0:01:28]} Qb6 {[%emt 0:09:10]} 20. Nfh5 {[%emt 0:09:26]} Nxh5 {[%emt 0:11:18]} 21. Nxh5 {[%emt 0:00:06]} f6 {[%emt 0:05:13]} 22. Qf4 {[%emt 0:01:46]} Bf7 {[%emt 0:02:44]} 23. Rxe8+ {[%emt 0:06:49]} Bxe8 {[%emt 0:02:33]} 24. Qg4 {[%emt 0:07:56]} Bxh5 {[%emt 0:05:49]} 25. Qxh5 {[%emt 0:00:19]} g6 {[%emt 0:00:16]} 26. Qf3 {[%emt 0:02:03]} Qd6 {[%emt 0:04:28]} 27. Qe3 {[%emt 0:07:24]} Kg7 {[%emt 0:03:28]} 28. h4 {[%emt 0:00:27]} Nd7 {[%emt 0:01:23]} 29. h5 {[%emt 0:01:43]} Ne5 {[%emt 0:00:57]} 30. h6+ {[%emt 0:01:03]} Kf7 {[%emt 0:00:24]} 31. Qd4 {[%emt 0:05:45]} Nc4 {[%emt 0:01:32]} 32. b3 {[%emt 0:00:32]} Ne5 {[%emt 0:00:34]} 33. a4 {[%emt 0:05:13]} Qe6 {[%emt 0:01:20]} 34. axb5 {[%emt 0:00:36]} axb5 {[%emt 0:00:09]} 35. Be4 {[%emt 0:01:28]} Qg4 {[%emt 0:01:38]} 36. Bxd5+ {[%emt 0:01:13]} Ke7 {[%emt 0:00:22]} 37. Qc5+ {[%emt 0:01:13]} Rd6 {[%emt 0:00:20]} 38. Qxd6+ {[%emt 0:00:27]} 1-0

[Event "EYCC Girls U20 2021"]
[Site "Tornelo"]
[Date "2021.10.15"]
[Round "6.1"]
[White "Heydarova, Aytaj"]
[Black "Radeva, Viktoria"]
[Result "0-1"]
[ECO "B42"]
[WhiteElo "1637"]
[BlackElo "2314"]
[Annotator "RC"]
[PlyCount "79"]
[EventDate "2021.10.15"]
[EventType "swiss"]
[EventCountry "NET"]
[SourceTitle "playchess.com"]
[Source "ChessBase"]
[SourceQuality "1"]
[TimeControl "5400+30"]

1. e4 {[%emt 0:00:30]} c5 {[%emt 0:00:41]} 2. Nf3 {[%emt 0:00:06]} e6 {[%emt 0:00:07]} 3. d4 {[%emt 0:00:03]} cxd4 {[%emt 0:00:05]} 4. Nxd4 {[%emt 0:00:02]} a6 {[%emt 0:00:06]} 5. Bd3 {[%emt 0:00:14]} Nf6 {[%emt 0:00:27]} 6. O-O {[%emt 0:00:49]} Qc7 {[%emt 0:00:52]} 7. Qe2 {[%emt 0:00:14]} d6 {[%emt 0:00:08]} 8. c4 {[%emt 0:00:04]} g6 {[%emt 0:00:14]} 9. Nc3 {[%emt 0:00:07]} Bg7 {[%emt 0:00:16]} 10. Nf3 {[%emt 0:00:03]} O-O {[%emt 0:01:31]} 11. Bf4 {[%emt 0:01:06]} Nh5 {[%emt 0:02:13]} 12. Be3 {[%emt 0:09:25]} Bxc3 {[%emt 0:02:50]} 13. bxc3 {[%emt 0:00:38]} Nd7 {[%emt 0:01:19]} 14. Nd2 {[%emt 0:03:39]} e5 {[%emt 0:03:08]} 15. Bc2 {[%emt 0:08:15]} Nc5 {[%emt 0:06:45]} 16. Bh6 {[%emt 0:03:12]} Re8 {[%emt 0:01:59]} 17. Rfd1 {[%emt 0:01:31]} Be6 {[%emt 0:04:01]} 18. Nf1 {[%emt 0:11:45]} Nf4 {[%emt 0:13:48]} 19. Qf3 {[%emt 0:00:55]} Bxc4 {[%emt 0:00:43]} 20. Bxf4 {[%emt 0:00:05]} exf4 {[%emt 0:00:06]} 21. Qxf4 {[%emt 0:00:02]} Bxf1 {[%emt 0:01:17]} 22. Kxf1 {[%emt 0:03:06]} Nxe4 {[%emt 0:04:14]} 23. Bb3 {[%emt 0:07:09]} Rad8 {[%emt 0:04:58]} 24. Rac1 {[%emt 0:05:50]} Re5 {[%emt 0:06:06]} 25. Bd5 {[%emt 0:09:13]} Nxf2 {[%emt 0:11:13]} 26. Qxf7+ {[%emt 0:03:17]} Qxf7 {[%emt 0:00:18]} 27. Bxf7+ {[%emt 0:00:02]} Kxf7 {[%emt 0:00:09]} 28. Kxf2 {[%emt 0:00:02]} Ke6 {[%emt 0:01:35]} 29. Rd2 {[%emt 0:00:52]} Rf8+ {[%emt 0:00:18]} 30. Kg1 {[%emt 0:00:07]} Rc8 {[%emt 0:07:09]} 31. Kf2 {[%emt 0:01:09]} Rc4 {[%emt 0:01:32]} 32. h3 {[%emt 0:07:20]} b5 {[%emt 0:04:19]} 33. Rcd1 {[%emt 0:01:59]} d5 {[%emt 0:00:33]} 34. Rd3 {[%emt 0:00:15]} Rf4+ {[%emt 0:01:41]} 35. Kg3 {[%emt 0:00:21]} Rfe4 {[%emt 0:01:27]} 36. R1d2 {[%emt 0:02:04]} Re3+ {[%emt 0:02:33]} 37. Kf2 {[%emt 0:00:07]} Rxd3 {[%emt 0:00:32]} 38. Rxd3 {[%emt 0:00:03]} Re4 {[%emt 0:02:54]} 39. Kf3 {[%emt 0:00:44]} Kd6 {[%emt 0:02:15]} 40. Kg3 {[%emt 0:04:05]} 0-1

[Event "EYCC Girls U20 2021"]
[Site "Tornelo"]
[Date "2021.10.15"]
[Round "9.1"]
[White "Konecny, Sophie"]
[Black "Heydarova, Aytaj"]
[Result "1/2-1/2"]
[ECO "E68"]
[WhiteElo "1864"]
[BlackElo "1637"]
[Annotator "NA"]
[PlyCount "34"]
[EventDate "2021.10.15"]
[EventType "swiss"]
[EventCountry "NET"]
[SourceTitle "playchess.com"]
[Source "ChessBase"]
[SourceQuality "1"]
[TimeControl "5400+30"]

1. d4 {[%emt 0:00:30]} Nf6 {[%emt 0:00:37]} 2. Nf3 {[%emt 0:00:07]} g6 {[%emt 0:00:13]} 3. g3 {[%emt 0:00:10]} Bg7 {[%emt 0:00:04]} 4. Bg2 {[%emt 0:00:20]} O-O {[%emt 0:00:04]} 5. O-O {[%emt 0:00:52]} d6 {[%emt 0:00:13]} 6. c4 {[%emt 0:00:08]} Nbd7 {[%emt 0:00:15]} 7. Nc3 {[%emt 0:00:40]} e5 {[%emt 0:00:06]} 8. e4 {[%emt 0:01:21]} Qe7 {[%emt 0:03:21]} 9. Re1 {[%emt 0:02:56]} a5 {[%emt 0:15:54]} 10. b3 {[%emt 0:04:55]} exd4 {[%emt 0:14:22]} 11. Nxd4 {[%emt 0:01:08]} Nc5 {[%emt 0:01:07]} 12. Rb1 {[%emt 0:03:27]} Re8 {[%emt 0:01:35]} 13. Bb2 {[%emt 0:05:11]} Rb8 {[%emt 0:08:17]} 14. h3 {[%emt 0:04:45]} Nfd7 {[%emt 0:03:25]} 15. f4 {[%emt 0:07:49]} Nb6 {[%emt 0:10:05]} 16. Kh2 {[%emt 0:07:39]} Bd7 {[%emt 0:07:50]} 17. Ndb5 {[%emt 0:04:46]} Bc6 {[%emt 0:10:20]} 1/2-1/2

[Event "EYCC Girls U20 2021"]
[Site "Tornelo"]
[Date "2021.10.15"]
[Round "9.2"]
[White "Afonasieva, Anna"]
[Black "Nosacheva, Mariya"]
[Result "1/2-1/2"]
[ECO "B73"]
[WhiteElo "2227"]
[BlackElo "2239"]
[Annotator "ChessBase"]
[PlyCount "30"]
[EventDate "2021.10.15"]
[EventType "swiss"]
[EventCountry "NET"]
[SourceTitle "playchess.com"]
[Source "ChessBase"]
[SourceQuality "1"]
[TimeControl "5400+30"]

1. e4 {[%emt 0:00:30]} c5 {[%emt 0:00:43]} 2. Nf3 {[%emt 0:00:04]} Nc6 {[%emt 0:00:28]} 3. Nc3 {[%emt 0:01:02]} g6 {[%emt 0:00:34]} 4. d4 {[%emt 0:00:21]} cxd4 {[%emt 0:00:14]} 5. Nxd4 {[%emt 0:00:07]} Bg7 {[%emt 0:00:05]} 6. Be3 {[%emt 0:00:09]} Nf6 {[%emt 0:01:44]} 7. Be2 {[%emt 0:02:16]} O-O {[%emt 0:01:01]} 8. O-O {[%emt 0:00:37]} d6 {[%emt 0:04:08]} 9. Qd2 {[%emt 0:01:45]} Ng4 {[%emt 0:12:07]} 10. Bxg4 {[%emt 0:03:03]} Bxg4 {[%emt 0:00:04]} 11. Nxc6 {[%emt 0:00:44]} bxc6 {[%emt 0:00:15]} 12. h3 {[%emt 0:01:50]} Bd7 {[%emt 0:12:49]} 13. Bh6 {[%emt 0:01:59]} Rb8 {[%emt 0:01:52]} 14. Bxg7 {[%emt 0:05:58]} Kxg7 {[%emt 0:00:05]} 15. b3 {[%emt 0:04:13]} Qa5 {[%emt 0:02:00]} 1/2-1/2